[Event "44th Chess Olympiad Women 2022"]
[Site "Chennai"]
[Date "2022.08.07"]
[Round "9.22"]
[White "Atalik, Ekaterina"]
[Black "Ouellet, Maili-Jade"]
[Result "1-0"]
[WhiteElo "2422"]
[BlackElo "2239"]
[Annotator "TA"]
[PlyCount "83"]
[EventDate "2022.??.??"]
[TimeControl "60"]

{[%evp 17,83,-7,-16,-7,15,18,18,17,45,46,52,50,42,43,48,37,45,42,46,42,56,69,
102,85,96,92,90,55,108,99,125,61,118,116,179,170,259,258,255,255,796,762,762,
379,692,375,367,367,367,354,351,335,315,268,303,277,692,689,645,635,564,547,
925,922,878,608,560,439]} 1. c4 {[%emt 0:00:06]} e6 {[%emt 0:00:03]} 2. e4 {
[%emt 0:00:12]} d5 {[%emt 0:01:19]} 3. exd5 {[%emt 0:00:09]} exd5 {[%emt 0:00:
00]} 4. d4 {[%emt 0:00:12]} Nf6 {[%emt 0:01:46]} 5. Nc3 {[%emt 0:00:07]} Be7 {
[%emt 0:02:40]} 6. Bd3 {[%emt 0:02:04]} dxc4 {[%emt 0:04:23]} 7. Bxc4 {[%emt 0:
00:00]} O-O {[%emt 0:00:36]} 8. Nge2 {[%emt 0:00:31]} Nbd7 {[%emt 0:02:03]} 9.
O-O {[%emt 0:00:22]} Nb6 {[%emt 0:01:15]} 10. Bb3 {[%emt 0:00:22] C01: French:
Exchange Variation.} Nbd5 {[%emt 0:09:19] has lost popularity (10...c6).} 11.
Nf4 {[%emt 0:01:29]} Nxf4 {[%emt 0:17:09]} 12. Bxf4 {[%emt 0:00:20] The
position is equal.} Bf5 {[%emt 0:01:02]} 13. Re1 {[%emt 0:04:09]} c6 {[%emt 0:
00:00]} 14. d5 {[%emt 0:06:38]} cxd5 {[%emt 0:02:26]} 15. Nxd5 {[%emt 0:00:43]}
Nxd5 {[%emt 0:02:55]} 16. Qxd5 {[%emt 0:00:59]} Qxd5 {[%emt 0:01:31]} 17. Bxd5
{[%emt 0:00:06] [#]} Bf6 $146 {[%emt 0:04:32]} ({Predecessor:} 17... Bb4 18.
Re5 Bd7 19. Re4 Bc5 20. Bxb7 Rad8 21. b4 Bf5 22. bxc5 Bxe4 23. Bxe4 Rd4 24. f3
f5 25. Be3 Rd7 26. c6 Rdd8 27. c7 {1-0 (27) Petronijevic,Z (2400)-Hoang,T 
(2360) Budapest 1996}) 18. Be5 {[%emt 0:00:56]} Bxe5 {[%emt 0:04:28]} 19. Rxe5
{[%emt 0:05:22]} Bd7 {[%emt 0:00:59]} 20. Re7 {[%emt 0:01:43]} Bc6 {[%emt 0:00:
00]} 21. Bxc6 {[%emt 0:00:34]} bxc6 $16 {[%emt 0:00:04] Endgame KRR-KRR} 22.
Rc1 {[%emt 0:00:26]} Rfe8 {[%emt 0:07:17]} ({Black should try} 22... Rfb8 $14)
23. Rc7 $1 {[%emt 0:10:25] White is more active.} Re2 {[%emt 0:00:00]} 24. Rb7
{[%emt 0:02:33]} (24. R7xc6 Rae8 25. Rc8 Kf8 $14) (24. g3 $1 $16) 24... g6 {
[%emt 0:00:48] [#]} ({Better is} 24... Kf8 $14) 25. g3 $1 {[%emt 0:01:02]} Rd8
{[%emt 0:00:57]} (25... Re6 $16) 26. Rxc6 $18 {[%emt 0:00:00]} (26. Rxa7 Rdd2
27. Rf1 (27. Rxc6 Rxf2 28. Rc8+ Kg7 $17) 27... Rxb2 $11) 26... Rdd2 {[%emt 0:
01:01]} (26... Red2 $142 27. Rcc7 Rf8 28. Rxa7 Rxb2) 27. Rf6 {[%emt 0:00:19]} (
27. Rxa7 Rxf2 28. Rc8+ Kg7 $17) 27... Rxb2 {[%emt 0:00:00]} 28. Rbxf7 {[%emt 0:
01:59]} ({Don't take} 28. Rxa7 $6 Rxa2 29. Raxf7 (29. Rfxf7 Rxf2 30. Rg7+ Kf8
$14) 29... g5 $16) 28... Rxa2 $2 {[%emt 0:00:53]} (28... g5 29. a4 (29. Rxa7
Rxa2 30. Raf7 Ra1+ 31. Kg2 Rea2 $16) 29... Re1+ 30. Kg2 Re6 31. Rf8+ Kg7 32.
R6f7+ (32. Rxe6 Kxf8 33. Re5 g4 $18) 32... Kg6 33. Rxa7 h6) 29. Rf8+ {[%emt 0:
00:13]} Kg7 {[%emt 0:00:04] [#]} 30. R6f7+ $1 {[%emt 0:00:06]} Kh6 {[%emt 0:00:
04]} 31. Rh8 {[%emt 0:00:16]} g5 {[%emt 0:00:00]} 32. Rhxh7+ {[%emt 0:01:52]}
Kg6 {[%emt 0:00:05][%cal Ye2f2]} 33. Rhg7+ {[%emt 0:08:18]} Kh6 {[%emt 0:00:25]
[%cal Ye2f2]} 34. Rg8 {[%emt 0:00:23]} ({Less strong is} 34. Rxa7 Rxa7 35. Rxa7
Kg6 36. Ra6+ Kg7 $18) 34... Re5 {[%emt 0:01:31]} 35. Ra8 {[%emt 0:05:01]} Ree2
{[%emt 0:01:02]} 36. Rfxa7 {[%emt 0:01:39]} Rab2 {[%emt 0:00:27]} (36... Rxa7
37. Rxa7 Rc2) 37. Ra6+ {[%emt 0:00:55] White is clearly winning.} Kg7 {[%emt 0:
00:10]} 38. R8a7+ {[%emt 0:00:37]} Kg8 {[%emt 0:00:15]} 39. Rg6+ {[%emt 0:01:
06]} Kf8 {[%emt 0:00:00]} 40. Rf6+ {[%emt 0:00:15]} Kg8 {[%emt 0:00:41]} 41.
Rf5 {[%emt 0:31:02]} g4 {[%emt 0:01:49]} 42. Ra4 {[%emt 0:00:00] Inhibits Rb4.
Weighted Error Value: White=0.15 (very precise) /Black=0.38} 1-0

[Event "44th Chess Olympiad Women 2022"]
[Site "Chennai"]
[Date "2022.08.07"]
[Round "9.22"]
[White "Demchenko, Svitlana"]
[Black "Aydin, Gulenay"]
[Result "1/2-1/2"]
[WhiteElo "2122"]
[BlackElo "2100"]
[Annotator "RC"]
[PlyCount "118"]
[EventDate "2022.??.??"]
[TimeControl "60"]

1. e4 {[%emt 0:00:03]} c6 {[%emt 0:00:04]} 2. Nf3 {[%emt 0:00:11]} d5 {[%emt 0:
00:00]} 3. Nc3 {[%emt 0:00:05]} dxe4 {[%emt 0:01:44]} 4. Nxe4 {[%emt 0:00:08]}
Nf6 {[%emt 0:03:09]} 5. Qe2 {[%emt 0:00:09]} Nxe4 {[%emt 0:02:04]} 6. Qxe4 {
[%emt 0:00:07]} Nd7 {[%emt 0:02:03]} 7. d4 {[%emt 0:00:05]} Nf6 {[%emt 0:01:43]
} 8. Qf4 {[%emt 0:00:07]} g6 {[%emt 0:12:09]} 9. Bd3 {[%emt 0:01:04]} Bg7 {
[%emt 0:00:30]} 10. O-O {[%emt 0:12:42]} O-O {[%emt 0:00:25]} 11. Re1 {[%emt 0:
00:00]} Bg4 {[%emt 0:06:54]} 12. Ne5 {[%emt 0:02:29]} Be6 {[%emt 0:00:07]} 13.
Qh4 {[%emt 0:04:45]} Qc8 {[%emt 0:13:08]} 14. Be3 {[%emt 0:11:36]} Bf5 {
[%emt 0:06:11]} 15. Rad1 {[%emt 0:04:41]} Bxd3 {[%emt 0:10:04]} 16. Rxd3 {
[%emt 0:03:14]} h5 {[%emt 0:07:42]} 17. h3 {[%emt 0:07:03]} Qe6 {[%emt 0:03:05]
} 18. Bd2 {[%emt 0:09:30]} Qxa2 {[%emt 0:09:09]} 19. Rb3 {[%emt 0:03:52]} Qa6 {
[%emt 0:01:16]} 20. g4 {[%emt 0:13:50]} Rad8 {[%emt 0:05:51]} 21. gxh5 {
[%emt 0:05:20]} Nxh5 {[%emt 0:00:09]} 22. Qxe7 {[%emt 0:01:13]} Rxd4 {[%emt 0:
00:00]} 23. Bc3 {[%emt 0:00:24]} Rdd8 {[%emt 0:02:05]} 24. Qxb7 {[%emt 0:02:06]
} Qa4 {[%emt 0:02:39]} 25. Qb4 {[%emt 0:04:39]} Qa6 {[%emt 0:01:13]} 26. Qb7 {
[%emt 0:05:06]} Qa4 {[%emt 0:00:02]} 27. Nxc6 {[%emt 0:02:51]} Bxc3 {[%emt 0:
00:00]} 28. Rxc3 {[%emt 0:00:41]} Rde8 {[%emt 0:02:03]} 29. Ne7+ {[%emt 0:00:
00]} Kh8 {[%emt 0:01:41]} 30. Qe4 {[%emt 0:00:58]} Qxe4 {[%emt 0:01:26]} 31.
Rxe4 {[%emt 0:00:03]} Nf6 {[%emt 0:00:46]} 32. Rh4+ {[%emt 0:02:10]} Kg7 {
[%emt 0:00:03]} 33. Nf5+ {[%emt 0:00:24]} gxf5 {[%emt 0:00:56]} 34. Rg3+ {
[%emt 0:00:05]} Ng4 {[%emt 0:00:00]} 35. hxg4 {[%emt 0:00:09]} f4 {[%emt 0:00:
00]} 36. Rc3 {[%emt 0:00:47]} Rb8 {[%emt 0:00:36]} 37. b3 {[%emt 0:00:32]} Rbc8
{[%emt 0:00:25]} 38. Rhh3 {[%emt 0:00:31]} Kg6 {[%emt 0:00:27]} 39. Rhd3 {
[%emt 0:00:52]} Kg5 {[%emt 0:00:16]} 40. f3 {[%emt 0:00:37]} Rfd8 {[%emt 0:00:
00]} 41. Rxc8 {[%emt 0:31:32]} Rxc8 {[%emt 0:30:03]} 42. c4 {[%emt 0:00:21]}
Rc5 {[%emt 0:00:00]} 43. Kf2 {[%emt 0:00:00]} a5 {[%emt 0:00:00]} 44. Rd8 {
[%emt 0:00:00]} a4 {[%emt 0:00:00]} 45. bxa4 {[%emt 0:00:00]} Rxc4 {[%emt 0:00:
00]} 46. Rd5+ {[%emt 0:00:00]} Kg6 {[%emt 0:00:00]} 47. a5 {[%emt 0:00:00]}
Rc2+ {[%emt 0:00:00]} 48. Ke1 {[%emt 0:00:00]} Ra2 {[%emt 0:00:00]} 49. g5 {
[%emt 0:00:00]} Kh5 {[%emt 0:00:00]} 50. Rf5 {[%emt 0:00:00]} Kg6 {[%emt 0:00:
00]} 51. Rb5 {[%emt 0:00:00]} Kh5 {[%emt 0:00:00]} 52. Rf5 {[%emt 0:00:00]} Kg6
{[%emt 0:00:00]} 53. Rxf4 {[%emt 0:00:00]} Rxa5 {[%emt 0:00:00]} 54. Rf6+ {
[%emt 0:00:00]} Kxg5 {[%emt 0:00:00]} 55. Rxf7 {[%emt 0:00:00]} Ra2 {[%emt 0:
00:00]} 56. Kf1 {[%emt 0:00:00]} Rb2 {[%emt 0:00:00]} 57. f4+ {[%emt 0:00:00]}
Kg4 {[%emt 0:00:27]} 58. f5 {[%emt 0:00:00]} Kg5 {[%emt 0:00:42]} 59. f6 {
[%emt 0:00:00]} Rb6 {[%emt 0:00:28]} 1/2-1/2

[Event "44th Chess Olympiad Women 2022"]
[Site "Chennai"]
[Date "2022.08.07"]
[Round "9.22"]
[White "Guo, Yu Han"]
[Black "Onur, Cigdem"]
[Result "1-0"]
[WhiteElo "1630"]
[BlackElo "2000"]
[Annotator "NA"]
[PlyCount "89"]
[EventDate "2022.??.??"]
[TimeControl "60"]

1. d4 {[%emt 0:00:04]} Nf6 {[%emt 0:00:03]} 2. c4 {[%emt 0:00:05]} e6 {[%emt 0:
00:00]} 3. Nc3 {[%emt 0:00:12]} Bb4 {[%emt 0:00:03]} 4. e3 {[%emt 0:00:15]} O-O
{[%emt 0:00:16]} 5. Bd2 {[%emt 0:00:45]} d5 {[%emt 0:09:24]} 6. a3 {[%emt 0:00:
00]} Be7 {[%emt 0:01:40]} 7. Nf3 {[%emt 0:02:17]} b6 {[%emt 0:23:18]} 8. cxd5 {
[%emt 0:09:08]} exd5 {[%emt 0:00:11]} 9. Bd3 {[%emt 0:00:14]} Bb7 {[%emt 0:00:
00]} 10. b4 {[%emt 0:04:14]} Nbd7 {[%emt 0:20:21]} 11. Qb1 {[%emt 0:03:31]} Rb8
{[%emt 0:05:54]} 12. Ne5 {[%emt 0:02:22]} c5 {[%emt 0:03:16]} 13. O-O {[%emt 0:
00:00]} Nxe5 {[%emt 0:05:46]} 14. dxe5 {[%emt 0:00:06]} Ne4 {[%emt 0:00:34]}
15. Ra2 {[%emt 0:06:53]} f5 {[%emt 0:06:23]} 16. f3 {[%emt 0:00:53]} Nxd2 {
[%emt 0:02:57]} 17. Rxd2 {[%emt 0:00:05]} cxb4 {[%emt 0:04:11]} 18. Ne2 {
[%emt 0:06:36]} Qc7 {[%emt 0:04:38]} 19. f4 {[%emt 0:01:34]} Bc5 {[%emt 0:00:
00]} 20. Nd4 {[%emt 0:04:05]} Bxd4 {[%emt 0:00:03]} 21. exd4 {[%emt 0:00:05]}
Qc3 {[%emt 0:00:19]} 22. Qxb4 {[%emt 0:01:38]} Rbc8 {[%emt 0:00:08]} 23. Re1 {
[%emt 0:02:15]} g6 {[%emt 0:01:40]} 24. Bb5 {[%emt 0:08:34]} Qxb4 {[%emt 0:00:
00]} 25. axb4 {[%emt 0:00:05]} Bc6 {[%emt 0:00:36]} 26. Ba6 {[%emt 0:01:11]}
Rce8 {[%emt 0:00:54]} 27. Rc1 {[%emt 0:01:47]} Re6 {[%emt 0:00:26]} 28. Rdc2 {
[%emt 0:07:14]} Ba4 {[%emt 0:00:05]} 29. Ra2 {[%emt 0:02:24]} b5 {[%emt 0:00:
00]} 30. Bb7 {[%emt 0:00:17]} Rd8 {[%emt 0:02:12]} 31. Rc5 {[%emt 0:01:56]}
Ree8 {[%emt 0:00:00]} 32. Ra3 {[%emt 0:01:16]} Kf8 {[%emt 0:00:00]} 33. Bxd5 {
[%emt 0:02:07]} Re7 {[%emt 0:00:00]} 34. e6 {[%emt 0:00:46]} Kg7 {[%emt 0:00:
00]} 35. Rd3 {[%emt 0:00:38]} Bc2 {[%emt 0:00:34]} 36. Rd2 {[%emt 0:00:13]} Ba4
{[%emt 0:00:29]} 37. Ba2 {[%emt 0:00:50]} Kf6 {[%emt 0:00:13]} 38. Kf2 {
[%emt 0:00:03]} Rd6 {[%emt 0:00:44]} 39. Ke3 {[%emt 0:00:14]} h6 {[%emt 0:00:
00]} 40. g3 {[%emt 0:01:13]} g5 {[%emt 0:00:23]} 41. fxg5+ {[%emt 0:31:27]}
Kxg5 {[%emt 0:04:32]} 42. Rf2 {[%emt 0:00:00]} Ra6 {[%emt 0:01:14]} 43. Rcxf5+
{[%emt 0:00:00]} Kg4 {[%emt 0:01:49]} 44. R2f4+ {[%emt 0:00:00]} Kh3 {[%emt 0:
00:00]} 45. Ke4 {[%emt 0:04:20]} 1-0

[Event "44th Chess Olympiad Women 2022"]
[Site "Chennai"]
[Date "2022.08.07"]
[Round "9.22"]
[White "Okuyaz, Duru"]
[Black "Mills, Morgen"]
[Result "0-1"]
[WhiteElo "2090"]
[BlackElo "1993"]
[Annotator "NA"]
[PlyCount "96"]
[EventDate "2022.??.??"]
[TimeControl "60"]

1. e4 {[%emt 0:00:04]} c6 {[%emt 0:00:05]} 2. Nc3 {[%emt 0:00:06]} d5 {[%emt 0:
00:00]} 3. Nf3 {[%emt 0:00:06]} Bg4 {[%emt 0:00:10]} 4. Be2 {[%emt 0:00:05]}
Nf6 {[%emt 0:00:44]} 5. e5 {[%emt 0:00:07]} Nfd7 {[%emt 0:00:21]} 6. d4 {
[%emt 0:00:06]} e6 {[%emt 0:00:17]} 7. Ng5 {[%emt 0:00:05]} Bf5 {[%emt 0:08:32]
} 8. Bh5 {[%emt 0:10:00]} Bg6 {[%emt 0:04:28]} 9. Bxg6 {[%emt 0:01:07]} hxg6 {
[%emt 0:00:08]} 10. Qg4 {[%emt 0:01:56]} Qe7 {[%emt 0:02:05]} 11. O-O {[%emt 0:
00:00]} Na6 {[%emt 0:06:54]} 12. Ne2 {[%emt 0:01:16]} O-O-O {[%emt 0:03:39]}
13. Qf3 {[%emt 0:04:43]} f6 {[%emt 0:01:31]} 14. Nf4 {[%emt 0:00:13]} Qe8 {
[%emt 0:11:09]} 15. exf6 {[%emt 0:17:23]} gxf6 {[%emt 0:02:00]} 16. Ngxe6 {
[%emt 0:00:29]} Bd6 {[%emt 0:13:12]} 17. Nxd8 {[%emt 0:00:54]} g5 {[%emt 0:00:
00]} 18. Nde6 {[%emt 0:00:58]} Qxe6 {[%emt 0:00:49]} 19. h3 {[%emt 0:11:57]}
gxf4 {[%emt 0:04:37]} 20. Bxf4 {[%emt 0:00:12]} Rh4 {[%emt 0:07:41]} 21. Bxd6 {
[%emt 0:02:03]} Qxd6 {[%emt 0:00:08]} 22. c3 {[%emt 0:00:41]} Re4 {[%emt 0:00:
00]} 23. Rfe1 {[%emt 0:01:48]} Qe6 {[%emt 0:00:17]} 24. Rxe4 {[%emt 0:00:06]}
dxe4 {[%emt 0:00:21]} 25. Qe2 {[%emt 0:01:06]} f5 {[%emt 0:00:38]} 26. c4 {
[%emt 0:05:13]} Nb4 {[%emt 0:02:14]} 27. b3 {[%emt 0:01:54]} Nd3 {[%emt 0:00:
00]} 28. f3 {[%emt 0:14:38]} Qd6 {[%emt 0:00:41]} 29. Qe3 {[%emt 0:02:10]} Qg3
{[%emt 0:00:26]} 30. Kf1 {[%emt 0:02:55]} f4 {[%emt 0:07:54]} 31. Qe2 {[%emt 0:
00:00]} e3 {[%emt 0:00:59]} 32. Kg1 {[%emt 0:00:56]} Nf2 {[%emt 0:00:42]} 33.
Qe1 {[%emt 0:04:18]} Nxh3+ {[%emt 0:01:51]} 34. Kf1 {[%emt 0:00:02]} Nf2 {
[%emt 0:03:45]} 35. Ke2 {[%emt 0:00:06]} Qg7 {[%emt 0:00:46]} 36. g4 {[%emt 0:
00:00]} Qxd4 {[%emt 0:01:30]} 37. Kf1 {[%emt 0:00:03]} Ne5 {[%emt 0:01:18]} 38.
Kg2 {[%emt 0:01:29]} Ned3 {[%emt 0:02:22]} 39. Qa5 {[%emt 0:01:22]} Qxa1 {
[%emt 0:03:35]} 40. Qf5+ {[%emt 0:00:03]} Kc7 {[%emt 0:00:25]} 41. Qa5+ {
[%emt 0:30:03]} Kd6 {[%emt 0:08:52]} 42. Qd8+ {[%emt 0:00:00]} Kc5 {[%emt 0:00:
00]} 43. Qa5+ {[%emt 0:00:00]} b5 {[%emt 0:01:59]} 44. Qxa7+ {[%emt 0:00:00]}
Kb4 {[%emt 0:00:24]} 45. Qe7+ {[%emt 0:00:00]} c5 {[%emt 0:00:31]} 46. Qh7 {
[%emt 0:00:00]} Qh1+ {[%emt 0:00:33]} 47. Qxh1 {[%emt 0:00:00]} Nxh1 {[%emt 0:
00:00]} 48. cxb5 {[%emt 0:00:00]} e2 {[%emt 0:00:13]} 0-1

[Event "44th Chess Olympiad Women 2022"]
[Site "Chennai"]
[Date "2022.08.07"]
[Round "9.23"]
[White "Martynkova, Olena"]
[Black "Gomez Barrera, Javiera Belen"]
[Result "1/2-1/2"]
[WhiteElo "2213"]
[BlackElo "2210"]
[Annotator "RC"]
[PlyCount "66"]
[EventDate "2022.??.??"]
[TimeControl "60"]

1. d4 {[%emt 0:00:03]} Nf6 {[%emt 0:00:20]} 2. Nf3 {[%emt 0:00:25]} g6 {
[%emt 0:00:14]} 3. c4 {[%emt 0:00:55]} Bg7 {[%emt 0:00:26]} 4. g3 {[%emt 0:00:
00]} O-O {[%emt 0:00:33]} 5. Bg2 {[%emt 0:00:25]} c6 {[%emt 0:00:33]} 6. O-O {
[%emt 0:01:57]} d5 {[%emt 0:00:10]} 7. cxd5 {[%emt 0:04:02]} cxd5 {[%emt 0:00:
00]} 8. Ne5 {[%emt 0:01:12]} Ng4 {[%emt 0:02:50]} 9. Nxg4 {[%emt 0:05:46]} Bxg4
{[%emt 0:00:02]} 10. Nc3 {[%emt 0:00:38]} Nc6 {[%emt 0:00:23]} 11. h3 {[%emt 0:
00:00]} Bd7 {[%emt 0:01:00]} 12. e3 {[%emt 0:10:37]} e6 {[%emt 0:01:06]} 13.
Bd2 {[%emt 0:07:58]} Rc8 {[%emt 0:03:41]} 14. Rc1 {[%emt 0:05:03]} Qc7 {
[%emt 0:13:23]} 15. Na4 {[%emt 0:07:19]} b6 {[%emt 0:05:03]} 16. b4 {[%emt 0:
00:00]} Qb8 {[%emt 0:23:04]} 17. Qb3 {[%emt 0:06:29]} Ne7 {[%emt 0:06:05]} 18.
b5 {[%emt 0:02:16]} Rxc1 {[%emt 0:02:53]} 19. Rxc1 {[%emt 0:00:25]} Rc8 {
[%emt 0:00:06]} 20. Nb2 {[%emt 0:11:04]} Rxc1+ {[%emt 0:08:44]} 21. Bxc1 {
[%emt 0:00:04]} Qc7 {[%emt 0:00:32]} 22. Bd2 {[%emt 0:00:45]} Nf5 {[%emt 0:00:
00]} 23. a4 {[%emt 0:01:49]} Nd6 {[%emt 0:10:05]} 24. Qc3 {[%emt 0:02:14]} Qxc3
{[%emt 0:10:26]} 25. Bxc3 {[%emt 0:00:06]} Bf8 {[%emt 0:01:52]} 26. Bf1 {
[%emt 0:05:04]} f6 {[%emt 0:04:07]} 27. Bd3 {[%emt 0:03:27]} Kf7 {[%emt 0:00:
00]} 28. h4 {[%emt 0:00:19]} Be7 {[%emt 0:01:49]} 29. Kg2 {[%emt 0:01:34]} Kg7
{[%emt 0:01:13]} 30. Kf1 {[%emt 0:00:31]} Be8 {[%emt 0:00:35]} 31. Kg2 {
[%emt 0:00:45]} Bd7 {[%emt 0:00:15]} 32. Kf1 {[%emt 0:00:08]} Be8 {[%emt 0:00:
00]} 33. Kg2 {[%emt 0:00:06]} Bd7 {[%emt 0:00:04]} 1/2-1/2

[Event "44th Chess Olympiad Women 2022"]
[Site "Chennai"]
[Date "2022.08.07"]
[Round "9.23"]
[White "Morales Flores, Monserrat"]
[Black "Baginskaite, Kamile"]
[Result "1/2-1/2"]
[WhiteElo "1946"]
[BlackElo "2134"]
[Annotator "NA"]
[PlyCount "67"]
[EventDate "2022.??.??"]
[TimeControl "60"]

1. e4 {[%emt 0:00:04]} c5 {[%emt 0:00:05]} 2. Nf3 {[%emt 0:00:07]} d6 {[%emt 0:
00:00]} 3. d4 {[%emt 0:00:09]} cxd4 {[%emt 0:00:07]} 4. Nxd4 {[%emt 0:00:11]}
Nf6 {[%emt 0:00:08]} 5. Nc3 {[%emt 0:00:19]} a6 {[%emt 0:00:06]} 6. Be2 {
[%emt 0:00:28]} e5 {[%emt 0:00:08]} 7. Nf3 {[%emt 0:00:20]} Be7 {[%emt 0:00:08]
} 8. Bg5 {[%emt 0:00:30]} Nbd7 {[%emt 0:05:40]} 9. a4 {[%emt 0:00:26]} h6 {
[%emt 0:01:23]} 10. Be3 {[%emt 0:00:21]} Qc7 {[%emt 0:01:46]} 11. Nd2 {[%emt 0:
00:00]} Nc5 {[%emt 0:01:40]} 12. a5 {[%emt 0:05:28]} Be6 {[%emt 0:00:50]} 13.
O-O {[%emt 0:07:06]} O-O {[%emt 0:07:31]} 14. f3 {[%emt 0:13:03]} Rac8 {
[%emt 0:18:30]} 15. Nb3 {[%emt 0:21:11]} Qc6 {[%emt 0:03:42]} 16. Nxc5 {
[%emt 0:01:32]} dxc5 {[%emt 0:00:02]} 17. Na4 {[%emt 0:00:20]} c4 {[%emt 0:00:
00]} 18. Qe1 {[%emt 0:02:33]} Nd7 {[%emt 0:02:00]} 19. Qg3 {[%emt 0:04:18]} Kh8
{[%emt 0:03:39]} 20. Kh1 {[%emt 0:01:54]} Rce8 {[%emt 0:08:09]} 21. f4 {
[%emt 0:14:33]} exf4 {[%emt 0:12:35]} 22. Bxf4 {[%emt 0:03:08]} Bf6 {[%emt 0:
00:00]} 23. Nc3 {[%emt 0:04:59]} Nc5 {[%emt 0:06:45]} 24. Bxh6 {[%emt 0:02:08]}
Bc8 {[%emt 0:05:36]} 25. Bg5 {[%emt 0:03:26]} Bxg5 {[%emt 0:01:27]} 26. Qxg5 {
[%emt 0:00:17]} Nxe4 {[%emt 0:01:02]} 27. Qh4+ {[%emt 0:00:07]} Qh6 {[%emt 0:
00:00]} 28. Qxh6+ {[%emt 0:00:52]} gxh6 {[%emt 0:00:01]} 29. Nxe4 {[%emt 0:00:
00]} Rxe4 {[%emt 0:00:02]} 30. Bf3 {[%emt 0:00:05]} Re5 {[%emt 0:00:50]} 31.
Ra4 {[%emt 0:01:33]} Bd7 {[%emt 0:03:12]} 32. Rb4 {[%emt 0:01:45]} Rxa5 {
[%emt 0:01:49]} 33. Rxb7 {[%emt 0:02:26]} Be6 {[%emt 0:00:11]} 34. Kg1 {
[%emt 0:00:35]} 1/2-1/2

[Event "44th Chess Olympiad Women 2022"]
[Site "Chennai"]
[Date "2022.08.07"]
[Round "9.23"]
[White "Sanchez Tobar, Francisca Valenti"]
[Black "Sibajeva, Marija"]
[Result "1-0"]
[WhiteElo "1839"]
[BlackElo "2032"]
[Annotator "NA RC"]
[PlyCount "51"]
[EventDate "2022.??.??"]
[TimeControl "60"]

1. e4 {[%emt 0:00:07]} d5 {[%emt 0:00:03]} 2. exd5 {[%emt 0:00:13]} Qxd5 {
[%emt 0:00:03]} 3. Nc3 {[%emt 0:00:08]} Qa5 {[%emt 0:00:04]} 4. d4 {[%emt 0:00:
00]} Nf6 {[%emt 0:00:05]} 5. Nf3 {[%emt 0:00:25]} Bf5 {[%emt 0:00:12]} 6. Bc4 {
[%emt 0:00:46]} e6 {[%emt 0:00:04]} 7. Bd2 {[%emt 0:01:09]} Bb4 {[%emt 0:00:09]
} 8. a3 {[%emt 0:00:37]} Bxc3 {[%emt 0:00:05]} 9. Bxc3 {[%emt 0:00:06]} Qb6 {
[%emt 0:00:03]} 10. Qe2 {[%emt 0:01:28]} O-O {[%emt 0:02:27]} 11. O-O-O {
[%emt 0:03:30]} Nc6 {[%emt 0:05:54]} 12. Nh4 {[%emt 0:03:25]} Ne4 {[%emt 0:00:
00]} 13. Nxf5 {[%emt 0:08:24]} exf5 {[%emt 0:02:58]} 14. Qf3 {[%emt 0:18:11]}
Nxc3 {[%emt 0:02:35]} 15. bxc3 {[%emt 0:03:38]} Ne7 {[%emt 0:22:08]} 16. Rde1 {
[%emt 0:17:53]} Qd6 {[%emt 0:00:44]} 17. Kb2 {[%emt 0:00:20]} b5 {[%emt 0:00:
00]} 18. Bb3 {[%emt 0:03:32]} a5 {[%emt 0:01:07]} 19. Re5 {[%emt 0:13:10]} b4 {
[%emt 0:07:25]} 20. a4 {[%emt 0:00:38]} Rfb8 {[%emt 0:14:29]} 21. Rc5 {[%emt 0:
00:00]} bxc3+ {[%emt 0:07:49]} 22. Qxc3 {[%emt 0:00:06]} c6 {[%emt 0:01:23]}
23. Qc4 {[%emt 0:06:27]} Qf6 {[%emt 0:00:15]} 24. Ka2 {[%emt 0:00:58]} Rb4 {
[%emt 0:03:26]} 25. Rxa5 {[%emt 0:01:13]} Rab8 {[%emt 0:00:01]} 26. Qxb4 {
[%emt 0:00:35]} 1-0

[Event "44th Chess Olympiad Women 2022"]
[Site "Chennai"]
[Date "2022.08.07"]
[Round "9.23"]
[White "Zaksaite, Salomeja"]
[Black "Reyes Jara, Paula"]
[Result "1-0"]
[WhiteElo "2212"]
[BlackElo "1858"]
[Annotator "NA RC"]
[PlyCount "55"]
[EventDate "2022.??.??"]
[TimeControl "60"]

1. e4 {[%emt 0:00:02]} e5 {[%emt 0:00:12]} 2. Nf3 {[%emt 0:00:42]} Nc6 {
[%emt 0:00:31]} 3. Bc4 {[%emt 0:00:38]} Bc5 {[%emt 0:00:23]} 4. d3 {[%emt 0:00:
00]} Nf6 {[%emt 0:01:04]} 5. Nbd2 {[%emt 0:02:47]} a6 {[%emt 0:06:16]} 6. h3 {
[%emt 0:00:25]} d6 {[%emt 0:00:44]} 7. c3 {[%emt 0:01:34]} Ba7 {[%emt 0:03:47]}
8. Bb3 {[%emt 0:01:07]} h6 {[%emt 0:01:00]} 9. Nf1 {[%emt 0:00:57]} Ne7 {
[%emt 0:07:29]} 10. Ne3 {[%emt 0:07:51]} g5 {[%emt 0:08:17]} 11. Qe2 {[%emt 0:
00:00]} Ng6 {[%emt 0:04:01]} 12. g3 {[%emt 0:00:35]} Be6 {[%emt 0:00:58]} 13.
Nf5 {[%emt 0:03:10]} Qd7 {[%emt 0:08:09]} 14. Ng7+ {[%emt 0:02:06]} Kf8 {
[%emt 0:00:40]} 15. Nxe6+ {[%emt 0:00:06]} fxe6 {[%emt 0:00:05]} 16. h4 {
[%emt 0:03:04]} g4 {[%emt 0:08:18]} 17. Nh2 {[%emt 0:00:18]} Qf7 {[%emt 0:00:
00]} 18. Bd2 {[%emt 0:06:58]} Kg7 {[%emt 0:01:48]} 19. O-O-O {[%emt 0:00:10]}
Raf8 {[%emt 0:01:56]} 20. h5 {[%emt 0:02:28]} Nxh5 {[%emt 0:09:07]} 21. Nxg4 {
[%emt 0:01:02]} Bxf2 {[%emt 0:05:59]} 22. Rxh5 {[%emt 0:03:00]} Nf4 {[%emt 0:
00:00]} 23. gxf4 {[%emt 0:00:16]} Qxh5 {[%emt 0:00:06]} 24. Qxf2 {[%emt 0:00:
00]} Kh7 {[%emt 0:03:09]} 25. Bxe6 {[%emt 0:00:25]} Qe8 {[%emt 0:08:38]} 26.
Bf5+ {[%emt 0:00:49]} Kg7 {[%emt 0:01:02]} 27. fxe5 {[%emt 0:00:17]} h5 {
[%emt 0:00:18]} 28. Rg1 {[%emt 0:02:49]} 1-0